fUST/lending_fUST_20240712
["ID","MTS","AMOUNT","RATE_DAILY","PERIOD"]
[331830430,1720773954785,240.53559226,0.00016255,2]
[331830431,1720773964394,213.14468238,0.00016255,2]
[331830432,1720773964526,4710.72024946,0.00016255,2]
[331830433,1720773969888,154.63660398,0.00016255,2]
[331830434,1720773979867,886.16851084,0.00016255,2]
[331830435,1720773981465,2833.91780134,0.00016255,2]
[331830436,1720773992261,10590.39159899,0.00016255,2]
[331830437,1720773992753,2103.62892291,0.00016255,2]
[331830438,1720773994404,213.14468238,0.00016255,2]
[331830439,1720774000086,283.52516772,0.00016255,2]
[331830440,1720774007264,154.63660398,0.00016255,2]
[331830441,1720774010288,209.65457239,0.00016255,2]
[331830442,1720774010827,154.63660398,0.00016255,2]
[331830443,1720774011526,805.51787753,0.00016255,2]
[331830444,1720774019958,530.38887076,0.00016255,2]
[331830445,1720774022771,950.1531885,0.00016255,2]
[331830446,1720774028770,278.6377652,0.00016255,2]
[331830447,1720774038064,950.1531885,0.00016255,2]
[331830448,1720774039329,777.81408945,0.00016255,2]
[331830449,1720774047299,936.02671898,0.00016255,2]
[331830450,1720774048295,6266.38582075,0.00016255,2]
[331830451,1720774049109,195.97964944,0.00016255,2]
[331830452,1720774052926,154.99194137,0.00016255,2]
[331830453,1720774057107,318.92327881,0.00016255,2]
[331830454,1720774062591,154.63660398,0.00016255,2]
[331830455,1720774063227,180.0289481,0.00016255,2]
[331830456,1720774064343,330.34625468,0.00016255,2]
[331830457,1720774065744,160.0,0.00016255,2]
[331830458,1720774071301,200.01501858,0.00016255,2]
[331830459,1720774076622,154.79103211,0.00016255,2]
[331830460,1720774080835,403.7518777,0.00016255,2]
[331830461,1720774081959,189.29518759,0.00016255,2]
[331830462,1720774082862,725.71765032,0.00016255,2]
[331830463,1720774084918,208.85428527,0.00016255,2]
[331830464,1720774085011,309.3658001,0.00016255,2]
[331830465,1720774087965,544.28138323,0.00016255,2]
[331830466,1720774089248,1073.06482303,0.00016255,2]
[331830467,1720774092016,909.32419218,0.00016255,2]
[331830468,1720774095052,201.06889319,0.00016255,2]
[331830469,1720774102884,268.19103216,0.00016255,2]
[331830470,1720774104407,213.14468238,0.00016255,2]
[331830471,1720774109769,1276.51453401,0.00016255,2]
[331830472,1720774111345,155.13010499,0.00016255,2]
[331830473,1720774124271,10590.39159899,0.00016255,2]
[331830475,1720774140071,154.63660398,0.00016255,2]
[331830476,1720774140870,154.79103211,0.00016255,2]
[331830477,1720774142566,499.19652782,0.00016255,2]
[331830478,1720774149894,154.63660398,0.00016255,2]
[331830479,1720774150653,169.82584625,0.00016255,2]
[331830480,1720774154811,458.58757804,0.00016255,2]
[331830481,1720774164359,154.63660398,0.00016255,2]
[331830482,1720774167319,-3544.1368191,0.00018254,2]
[331830483,1720774167340,-285.7471491,0.00018331,2]
[331830484,1720774167364,-187.84280407,0.00018899,2]
[331830485,1720774167385,-212.02110912,0.00018899,2]
[331830486,1720774167406,-208.10172278,0.00018899,2]
[331830487,1720774167427,-187.84280407,0.00018899,2]
[331830488,1720774167449,-283.73125597,0.00018899,2]
[331830489,1720774167470,-886.16851084,0.00018899,2]
[331830490,1720774167492,-202.78437057,0.00018899,2]
[331830491,1720774167515,-566.82686133,0.00018899,2]
[331830492,1720774167537,-1508.92872929,0.00018899,2]
[331830493,1720774182336,187.84280407,0.00016255,2]
[331830494,1720774184810,458.58757804,0.00016255,2]
[331830495,1720774188447,213.14468238,0.00016255,2]
[331830496,1720774204973,530.38887076,0.00016255,2]
[331830497,1720774210748,287.05721812,0.00016255,2]
[331830498,1720774223308,933.0186664,0.00016255,2]
[331830997,1720774237203,777.81408945,0.00016255,2]
[331831047,1720774237987,1431.57276298,0.00016255,2]
[331831416,1720774241751,-2135.29027091,0.00018899,2]
[331831418,1720774241761,-154.91149578,0.00018899,2]
[331831420,1720774241770,-318.92327881,0.00018899,2]
[331831422,1720774241779,-195.97964944,0.00018899,2]
[331831424,1720774241789,-154.63660398,0.00018899,2]
[331831426,1720774241798,-909.32419218,0.00018899,2]
[331831428,1720774241807,-10590.39159899,0.00018899,2]
[331831430,1720774241816,-208.85428527,0.00018899,2]
[331831432,1720774241826,-197.97933766,0.00019039,2]
[331831434,1720774241835,-1410.8929848,0.00019112,2]
[331831435,1720774241844,-725.71765032,0.00019164,2]
[331831437,1720774241853,-229.97372556,0.00019165,2]
[331831439,1720774241862,-403.7518777,0.00019165,2]
[331831441,1720774241871,-256.81082466,0.00019165,2]
[331831443,1720774241881,-403.7518777,0.00019165,2]
[331831445,1720774241891,-155.79787155,0.00019165,2]
[331831447,1720774241900,-161.618895,0.00019324,2]
[331831449,1720774241909,-409.060581,0.00019628,2]
[331831451,1720774241919,-2523.50182415,0.00019703,2]
[331831453,1720774241928,-707.50508696,0.00019703,2]
[331831454,1720774241938,-154.63660398,0.00019703,2]
[331831455,1720774241947,-154.87576558,0.00019703,2]
[331831456,1720774241956,-458.58757804,0.00019703,2]
[331831457,1720774241966,-570.80212909,0.00019703,2]
[331831458,1720774241975,-154.63660398,0.00019703,2]
[331831459,1720774241990,-2420.30621376,0.00019703,2]
[331831460,1720774241999,-548.86451441,0.00019703,2]
[331831461,1720774242008,-155.29293887,0.00019703,2]
[331831462,1720774242017,-172.32596779,0.00019703,2]
[331831463,1720774242027,-213.14468238,0.00019703,2]
[331831464,1720774242036,-178.571428,0.00019959,2]
[331831465,1720774242046,-609.6965354,0.0001996,2]
[331831466,1720774242055,-154.63660398,0.0002,2]
[331831467,1720774242065,-178.571428,0.00020133,2]
[331831468,1720774242074,-178.571428,0.00020306,2]
[331831469,1720774242083,-1223.5372548,0.00020479,2]
[331831471,1720774242092,-178.571428,0.0002048,2]
[331831473,1720774242101,-944.283796,0.00020508,2]
[331831475,1720774242111,-178.571428,0.00020653,2]
[331831477,1720774242121,-178.571428,0.00020826,2]
[331831479,1720774242130,-178.571428,0.00021,2]
[331831481,1720774242139,-378.551337,0.00021096,2]
[331831483,1720774242152,-492.90786688,0.0002243,2]
[331831485,1720774242161,-154.63660398,0.00022941,2]
[331831487,1720774242171,-610.54008661,0.00022942,2]
[331831489,1720774242182,-500.0,0.00023,2]
[331831491,1720774242191,-524.20317677,0.00023453,2]
[331831493,1720774242200,-955.33303742,0.00023453,2]
[331831495,1720774242210,-597.61963755,0.00023866,2]
[331831497,1720774242219,-201.74773991,0.00023968,2]
[331831499,1720774242228,-500.0,0.00024,2]
[331831501,1720774242237,-156.008579,0.00024439,2]
[331831503,1720774242246,-3318.01082722,0.00025,2]
[331831505,1720774242255,-689.22605276,0.00025,2]
[331831507,1720774242265,-313.7119777,0.00025,2]
[331831509,1720774242274,-260.51865148,0.00025,2]
[331831511,1720774242284,-351.15261588,0.00025,2]
[331831513,1720774242294,-2000.0,0.00025104,2]
[331831515,1720774242303,-518.44,0.00025184,3]
[331831517,1720774242312,-33.57967022,0.00025194,3]
[331831838,1720774246503,2135.29027091,0.00016255,2]
[331832373,1720774255114,318.92327881,0.00016255,2]
[331832376,1720774342415,305.5591273,0.00016255,2]
[331832377,1720774349108,3082.43601367,0.00016255,2]
[331832378,1720774367965,530.38887076,0.00016255,2]
[331832379,1720774386178,6267.98743964,0.00016255,2]
[331832380,1720774386279,287.05721812,0.00016255,2]
[331832381,1720774398661,6267.98743964,0.00016255,2]
[331832382,1720774399356,154.63660398,0.00016255,2]
[331832384,1720774409886,2523.50182415,0.00016255,2]
[331832385,1720774414272,10590.39159899,0.00016255,2]
[331832386,1720774414675,155.45090231,0.00016255,2]
[331832387,1720774415729,154.87576558,0.00016255,2]
[331832388,1720774416522,2135.29027091,0.00016255,2]
[331832389,1720774420470,165.17058968,0.00016255,2]
[331832390,1720774421050,154.63660398,0.00016255,2]
[331832391,1720774421979,1104.60661146,0.00016255,2]
[331832392,1720774423117,154.63660398,0.00016255,2]
[331832393,1720774426100,309.3349299,0.00016255,2]
[331832394,1720774429041,267.71924001,0.00016255,2]
[331832395,1720774429079,725.71765032,0.00016255,2]
[331832396,1720774429352,403.7518777,0.00016255,2]
[331832397,1720774429818,567.00490638,0.00016255,2]
[331832398,1720774430791,154.63660398,0.00016255,2]
[331832399,1720774431076,201.00821583,0.00016255,2]
[331832400,1720774431392,154.63660398,0.00016255,2]
[331832401,1720774432935,1124.07729006,0.00016255,2]
[331832402,1720774433884,955.33303742,0.00016255,2]
[331832403,1720774436143,195.97964944,0.00016255,2]
[331832404,1720774436308,154.63660398,0.00016255,2]
[331832405,1720774440116,318.92327881,0.00016255,2]
[331832406,1720774440221,805.44851734,0.00016255,2]
[331832407,1720774443502,201.74773991,0.00016255,2]
[331832408,1720774443679,2420.30621376,0.00016255,2]
[331832409,1720774446276,524.20317677,0.00016255,2]
[331832410,1720774447427,213.14468238,0.00016255,2]
[331832411,1720774447834,458.58757804,0.00016255,2]
[331832412,1720774452702,518.26359044,0.00016255,2]
[331832415,1720774460302,262.73494886,0.00016255,2]
[331832416,1720774461595,154.63660398,0.00016255,2]
[331832417,1720774465928,154.63660398,0.00016255,2]
[331832418,1720774467442,208.85428527,0.00016255,2]
[331832419,1720774468011,691.33834976,0.00016255,2]
[331832420,1720774474967,844.85643747,0.00016255,2]
[331832422,1720774491962,2093.73523972,0.00016255,2]
[331832423,1720774494839,548.86451441,0.00016255,2]
[331832424,1720774496267,610.54008661,0.00016255,2]
[331832425,1720774503046,909.32419218,0.00016255,2]
[331832427,1720774504120,3080.63280419,0.00016255,2]
[331832428,1720774506531,155.29293887,0.00016255,2]
[331832429,1720774507102,154.63660398,0.00016255,2]
[331832430,1720774510534,909.32419218,0.00016255,2]
[331832431,1720774511390,229.97372556,0.00016255,2]
[331832432,1720774513934,886.16851084,0.00016255,2]
[331832433,1720774526596,527.06452329,0.00016255,2]
[331832434,1720774531595,154.91149578,0.00016255,2]
[331832435,1720774543520,5211.42806786,0.00016255,2]
[331832436,1720774544168,4754.25385368,0.00016255,2]
[331832438,1720774550284,10613.53456506,0.00016255,2]
[331832439,1720774583784,172.32596779,0.00016255,2]
[331832440,1720774602366,155.55471484,0.00016255,2]
[331832441,1720774603077,334.79608376,0.00016255,2]
[331832442,1720774614432,403.7518777,0.00016255,2]
[331832443,1720774616525,2135.29027091,0.00016255,2]
[331832444,1720774617866,725.71765032,0.00016255,2]
[331832445,1720774630270,287.05721812,0.00016255,2]
[331832446,1720774640083,154.69832592,0.00016255,2]
[331832447,1720774640428,955.33303742,0.00016255,2]
[331832448,1720774645262,518.26359044,0.00016255,2]
[331832449,1720774645391,252.83087918,0.00016255,2]
[331832450,1720774647809,154.63660398,0.00016255,2]
[331832451,1720774650835,458.58757804,0.00016255,2]
[331832452,1720774652142,195.97964944,0.00016255,2]
[331832453,1720774653079,200.82807278,0.00016255,2]
[331832454,1720774662631,318.25184749,0.00016255,2]
[331832455,1720774664933,257.05802999,0.00016255,2]
[331832456,1720774678806,154.63660398,0.00016255,2]
[331832457,1720774678949,844.85643747,0.00016255,2]
[331832458,1720774678982,208.85428527,0.00016255,2]
[331832459,1720774682910,154.63660398,0.00016255,2]
[331832460,1720774685487,2878.93215316,0.00016255,2]
[331832461,1720774688676,154.63660398,0.00016255,2]
[331832462,1720774693800,154.63660398,0.00016255,2]
[331832463,1720774693939,844.85643747,0.00016255,2]
[331832464,1720774699923,886.16851084,0.00016255,2]
[331832465,1720774703100,154.63660398,0.00016255,2]
[331832466,1720774704538,5213.11762924,0.00016255,2]
[331832467,1720774706117,287.33036596,0.00016255,2]
[331832468,1720774713051,34960.56102205,0.00016255,2]
[331832469,1720774717308,165.14297844,0.00016255,2]
[331832470,1720774733555,909.32419218,0.00016255,2]
[331832471,1720774736549,160.03609292,0.00016255,2]
[331832472,1720774747057,17266.1485105,0.00016255,2]
[331832473,1720774747686,6267.98743964,0.00016255,2]
[331832475,1720774763615,909.32419218,0.00016255,2]
[331832476,1720774763722,804.69654268,0.00016255,2]
[331832477,1720774764489,186.63435546,0.00016255,2]
[331832478,1720774769181,1230.45785193,0.00016255,2]
[331832479,1720774772273,363.26206664,0.00016255,2]
[331832480,1720774778605,23819.86104149,0.00016255,2]
[331832481,1720774778630,18446.54533845,0.00016255,2]
[331832482,1720774781686,1553.45466155,0.00016255,2]
[331832483,1720774781723,682.75624688,0.00016255,2]
[331832484,1720774787134,1309.63218535,0.00016255,2]
[331832485,1720774787519,457.79285718,0.00016255,2]
[331832486,1720774787671,525.73842429,0.00016255,2]
[331832487,1720774793100,2729.46314623,0.00016255,2]
[331832488,1720774797413,196.82523815,0.00016255,2]
[331832489,1720774810882,725.71765032,0.00016255,2]
[331832491,1720774816223,156.45295853,0.00016255,2]
[331832492,1720774827038,5213.11762924,0.00016255,2]
[331832493,1720774827300,287.05721812,0.00016255,2]
[331832494,1720774835875,154.63660398,0.00016255,2]
[331832495,1720774841695,285.74812051,0.00016255,2]
[331832496,1720774854401,404.03591931,0.00016255,2]
[331832497,1720774859556,34960.56102205,0.00016255,2]
[331832498,1720774865187,154.69832592,0.00016255,2]
[331832499,1720774867614,155.85959349,0.00016255,2]
[331832500,1720774888924,708.68683231,0.00016255,2]
[331832501,1720774893954,321.63772179,0.00016255,2]
[331832503,1720774906941,154.63660398,0.00016255,2]
[331832504,1720774909700,6267.98743964,0.00016255,2]
[331832505,1720774909943,402.73174598,0.00016255,2]
[331832506,1720774910588,17266.1485105,0.00016255,2]
[331832507,1720774914028,774.77308507,0.00016255,2]
[331832508,1720774920424,955.33303742,0.00016255,2]
[331832509,1720774924167,178.70527737,0.00016255,2]
[331832510,1720774926163,24569.26660639,0.00016255,2]
[331832511,1720774926191,17697.13977355,0.00016255,2]
[331832512,1720774932969,208.85428527,0.00016255,2]
[331832513,1720774934067,157.1568828,0.00016255,2]
[331832514,1720774936946,154.63660398,0.00016255,2]
[331832515,1720774940973,208.85428527,0.00016255,2]
[331832518,1720774963291,610.54008661,0.00016255,2]
[331832519,1720774979575,909.32419218,0.00016255,2]
[331832520,1720774990541,34934.28200962,0.00016255,2]
[331832521,1720774992266,227.0,0.00016255,2]
[331832522,1720774993202,1230.45785193,0.00016255,2]
[331832523,1720774996871,765.42784086,0.00016255,2]
[331832524,1720775014727,525.40078047,0.00016255,2]
[331832525,1720775015552,5208.0489451,0.00016255,2]
[331832526,1720775047624,154.63660398,0.00016255,2]
[331832527,1720775048087,154.63660398,0.00016255,2]
[331832529,1720775056638,13275.86318741,0.00016255,2]
[331832531,1720775071724,17266.1485105,0.00016255,2]
[331832532,1720775079223,100000.0,0.00015,2]
[331832534,1720775087206,6267.98743964,0.00016255,2]
[331832535,1720775093357,402.73174598,0.00016255,2]
[331832536,1720775096290,287.05721812,0.00016255,2]
[331832542,1720775134434,955.33303742,0.00016255,2]
[331832543,1720775144293,554.98838672,0.00016255,2]
[331832544,1720775158432,158.81914973,0.00016255,2]
[331832546,1720775175183,154.63660398,0.00016255,2]
[331832548,1720775181586,298.74632661,0.00016255,2]
[331832550,1720775188206,1230.45785193,0.00016255,2]
[331832551,1720775190139,-609.6965354,0.00017505,2]
[331832552,1720775190162,-178.571428,0.00017872,2]
[331832553,1720775190182,-2755.87095231,0.00018,2]
[331832554,1720775205180,154.63660398,0.00016255,2]
[331832556,1720775224373,290.05,0.00010959,2]
[331832557,1720775227914,240.20078219,0.00016255,2]
[331832558,1720775232585,11657.91784562,0.00016255,2]
[331832559,1720775234814,241.71,0.00010959,2]
[331832560,1720775245546,201.43,0.00010959,2]
[331832561,1720775246148,154.63660398,0.00016255,2]
[331832565,1720775253218,6267.98743964,0.00016255,2]
[331832568,1720775256352,167.86,0.00010959,2]
[331832569,1720775256386,154.63660398,0.00016255,2]
[331832570,1720775261671,154.63660398,0.00016255,2]
[331832571,1720775266838,839.3,0.00010959,2]
[331832572,1720775266880,154.63660398,0.00016255,2]
[331832574,1720775270636,154.63660398,0.00016255,2]
[331832579,1720775299020,168.14181553,0.00016255,2]
[331832581,1720775302997,1106.562641,0.00017011,2]
[331832583,1720775312400,402.73174598,0.00016255,2]
[331832586,1720775328579,1784.25917835,0.00016255,2]
[331832588,1720775331801,287.05721812,0.00016255,2]
[331832590,1720775332674,-758.21611829,0.000179,2]
[331832591,1720775332704,-128.90185889,0.0001799,2]
[331832592,1720775332755,-785.03283111,0.0001799,2]
[331832593,1720775332815,-887.11797718,0.0001799,2]
[331832595,1720775346419,955.33303742,0.00016255,2]
[331832601,1720775357934,-300.0,0.00017989,2]
[331832602,1720775357968,-93.08651841,0.0001799,2]
[331832603,1720775358002,-938.30335289,0.0001799,2]
[331832604,1720775358036,-938.30335289,0.0001799,2]
[331832608,1720775379549,6267.98743964,0.00016255,2]
[331832610,1720775382882,-983.69721738,0.0001799,2]
[331832611,1720775382946,-693.76149069,0.0001799,2]
[331832614,1720775390822,525.56960238,0.00016255,2]
[331832623,1720775405305,1230.45785193,0.00016255,2]
[331832668,1720775431889,154.63660398,0.00016255,2]
[331832734,1720775437925,-300.0,0.00017989,2]
[331832735,1720775437935,-40658.74554306,0.0001799,2]
[331832736,1720775437945,-227.69722154,0.00017999,2]
[331832737,1720775438057,-494.14551838,0.00017999,2]
[331832738,1720775438068,-255.2869208,0.00017999,2]
[331832739,1720775438078,-500.0,0.00017999,2]
[331832740,1720775438088,-500.0,0.00017999,2]
[331832741,1720775438098,-500.0,0.00017999,2]
[331832742,1720775438107,-500.0,0.00017999,2]
[331832743,1720775438117,-291.39081489,0.00017999,2]
[331832744,1720775438127,-259.26525459,0.00017999,2]
[331832745,1720775438136,-100000.0,0.00018,2]
[331832746,1720775438146,-1223.5372548,0.00018017,2]
[331832747,1720775438156,-178.571428,0.00018027,2]
[331832748,1720775438165,-409.060581,0.00018111,2]
[331832749,1720775438175,-178.571428,0.00018182,2]
[331832750,1720775438184,-1410.8929848,0.00018287,2]
[331832751,1720775438194,-178.571428,0.00018337,2]
[331832752,1720775438204,-178.571428,0.00018493,2]
[331832753,1720775438213,-178.571428,0.00018648,2]
[331832754,1720775438222,-323.91367898,0.00018798,2]
[331832755,1720775438236,-178.571428,0.00018803,2]
[331832756,1720775438246,-154.63660398,0.00018899,2]
[331832757,1720775438258,-240.20078219,0.00018899,2]
[331832758,1720775438267,-269.24595876,0.00018899,2]
[331832759,1720775438277,-150.0,0.000189,2]
[331832760,1720775438286,-197.97933766,0.00019039,2]
[331832761,1720775438295,-955.33303742,0.00019164,2]
[331832762,1720775438306,-154.63660398,0.00019165,2]
[331832763,1720775438315,-524.20317677,0.00019165,2]
[331832764,1720775438324,-402.73174598,0.00019165,2]
[331832765,1720775438334,-287.05721812,0.00019165,2]
[331832766,1720775438344,-165.362528,0.00019178,2]
[331832767,1720775438355,-14592.51589636,0.00019336,2]
[331832768,1720775438367,-10307.48410364,0.00019336,2]
[331832769,1720775438377,-570.80212909,0.00019703,2]
[331832770,1720775438387,-1400.72762355,0.00019703,2]
[331832771,1720775438396,-154.6828939,0.0002,2]
[331832772,1720775438405,-378.551339,0.00021096,2]
[331832773,1720775438415,-161.618895,0.00021484,2]
[331832774,1720775438424,-758.21611829,0.00021614,2]
[331832775,1720775438433,-2090.0935492,0.00021806,2]
[331832776,1720775438442,-191.2,0.00021837,2]
[331832777,1720775438451,-191.2,0.0002217,2]
[331832778,1720775438460,-413.03103633,0.0002243,2]
[331832779,1720775438470,-208.24444809,0.0002243,2]
[331832780,1720775438480,-191.2,0.00022503,2]
[331832781,1720775438489,-154.63660398,0.00022579,2]
[331832782,1720775438499,-191.2,0.00022836,2]
[331832783,1720775438509,-154.63660398,0.00022941,2]
[331832784,1720775438519,-1404.0,0.00023058,2]
[331832785,1720775438528,-191.2,0.00023169,2]
[331832786,1720775438537,-151.0,0.00023169,2]
[331832787,1720775438547,-46106.9501425,0.00023443,3]
[331832788,1720775438556,-154.63660398,0.00023453,2]
[331832789,1720775438565,-191.2,0.00023502,2]
[331832790,1720775438575,-151.0,0.00023502,2]
[331832791,1720775438584,-191.2,0.00023835,2]
[331832792,1720775438597,-151.0,0.00023835,2]
[331832793,1720775438606,-150.0,0.000239,2]
[331832794,1720775438615,-154.63660398,0.00023968,2]
[331832795,1720775438624,-191.2,0.00024168,2]
[331832796,1720775438634,-151.0,0.00024168,2]
[331832797,1720775438643,-156.008579,0.00024439,2]
[331832798,1720775438652,-156.008579,0.00024439,2]
[331832799,1720775438661,-156.008579,0.00024439,2]
[331832800,1720775438671,-191.2,0.00024501,2]
[331832801,1720775438680,-151.0,0.00024501,2]
[331832802,1720775438689,-500.0,0.00024658,2]
[331832803,1720775438698,-288.30258995,0.00024658,2]
[331832804,1720775438708,-191.2,0.00024834,2]
[331832805,1720775438717,-151.0,0.00024834,2]
[331832806,1720775438727,-1000.0,0.00025,25]
[331832807,1720775438736,-260.51865148,0.00025,2]
[331832808,1720775438745,-351.15261588,0.00025,2]
[331832809,1720775438755,-3318.01082722,0.00025,2]
[331832810,1720775438765,-313.7119777,0.00025,2]
[331832811,1720775438775,-2000.0,0.00025094,2]
[331832812,1720775438785,-191.2,0.00025167,2]
[331832813,1720775438794,-151.0,0.00025167,2]
[331832814,1720775438804,-15327.44895962,0.00025194,3]
[331832815,1720775438816,-30779.50118288,0.00025194,3]
[331832816,1720775438825,-545.7,0.00025203,2]
[331832817,1720775438835,-500.0,0.00025203,2]
[331832818,1720775438845,-402.76331571,0.00025203,2]
[331832819,1720775438855,-479.9914529,0.00025203,2]
[331832820,1720775438864,-163.20114224,0.00025203,2]
[331832821,1720775438873,-500.0,0.00025203,2]
[331832822,1720775438883,-500.0,0.00025203,2]
[331832823,1720775438892,-500.0,0.00025203,2]
[331832824,1720775438902,-500.0,0.00025203,2]
[331832825,1720775438912,-516.15409806,0.00025203,2]
[331832826,1720775438922,-176.39984624,0.00025203,2]
[331832827,1720775438931,-500.0,0.00025203,2]
[331832828,1720775438941,-300.0,0.00025203,2]
[331832829,1720775438950,-500.0,0.00025203,2]
[331832830,1720775438960,-283.21426597,0.00025203,2]
[331832831,1720775438970,-500.0,0.00025203,2]
[331832832,1720775438984,-500.0,0.00025203,2]
[331832833,1720775438993,-500.0,0.00025203,2]
[331832834,1720775439002,-500.0,0.00025203,2]
[331832835,1720775439013,-525.0,0.00025203,2]
[331832836,1720775439023,-546.23752144,0.00025203,2]
[331832837,1720775439032,-546.23752144,0.00025203,2]
[331832838,1720775439041,-546.23752144,0.00025203,2]
[331832839,1720775439052,-546.23752144,0.00025203,2]
[331832840,1720775439061,-546.23752144,0.00025203,2]
[331832841,1720775439071,-546.23752144,0.00025203,2]
[331832842,1720775439080,-546.23752144,0.00025203,2]
[331832843,1720775439089,-546.23752144,0.00025203,2]
[331832844,1720775439099,-546.23752144,0.00025203,2]
[331832845,1720775439108,-546.23752144,0.00025203,2]
[331832846,1720775439118,-546.23752144,0.00025203,2]
[331832847,1720775439127,-546.23752144,0.00025203,2]
[331832848,1720775439137,-546.23752144,0.00025203,2]
[331832849,1720775439146,-546.23752144,0.00025203,2]
[331832850,1720775439156,-546.23752144,0.00025203,2]
[331832851,1720775439166,-546.23752144,0.00025203,2]
[331832852,1720775439176,-546.23752144,0.00025203,2]
[331832853,1720775439186,-551.05067993,0.00025203,2]
[331832854,1720775439195,-551.05067993,0.00025203,2]
[331832855,1720775439205,-551.05067993,0.00025203,2]
[331832856,1720775439215,-551.05067993,0.00025203,2]
[331832857,1720775439224,-551.05067993,0.00025203,2]
[331832858,1720775439233,-551.05067993,0.00025203,2]
[331832859,1720775439244,-551.05067993,0.00025203,2]
[331832860,1720775439255,-30000.0,0.00025204,2]
[331832861,1720775439265,-150.0,0.00025276,2]
[331832862,1720775439275,-758.21611829,0.00025329,2]
[331832864,1720775439284,-37709.92846918,0.0002549,3]
[331832891,1720775440142,-154.63660398,0.00023966,2]
[331832892,1720775440151,-375.00206261,0.00025204,2]
[331832894,1720775440161,-43466.85029027,0.0002549,3]
[331832949,1720775445154,154.63660398,0.00016255,2]
[331832967,1720775493653,154.63660398,0.00016255,2]
[331832968,1720775511650,154.63660398,0.00016255,2]
[331832971,1720775600260,1230.45785193,0.00016255,2]
[331832972,1720775603858,525.73547848,0.00016255,2]
[331832973,1720775617836,317.52980432,0.00016255,2]
[331832974,1720775621402,154.63660398,0.00016255,2]
[331832976,1720775633222,154.63660398,0.00016255,2]
[331832977,1720775634162,413.03103633,0.00016255,2]
[331832978,1720775642368,154.63660398,0.00016255,2]
[331832979,1720775642659,154.63660398,0.00016255,2]
[331832980,1720775658017,154.63660398,0.00016255,2]
[331832981,1720775663408,272.36372956,0.00016255,2]
[331832982,1720775667952,240.20078219,0.00016255,2]
[331832983,1720775673945,402.73174598,0.00016255,2]
[331832984,1720775682984,240.20078219,0.00016255,2]
[331832988,1720775735043,154.63660398,0.00016255,2]
[331832991,1720775780351,331.37,0.00010959,2]
[331832992,1720775808419,174.76654607,0.00016255,2]
[331832993,1720775826365,190.62687856,0.00016255,2]
[331832994,1720775836703,242.65043553,0.00016255,2]
[331832996,1720775850767,155.63385317,0.00016255,2]
[331832997,1720775876371,154.63660398,0.00016255,2]
[331832998,1720775877184,205.58530672,0.00016255,2]
[331833000,1720775901069,240.20078219,0.00016255,2]
[331833001,1720775902947,402.73174598,0.00016255,2]
[331833003,1720775939051,305.83767259,0.00016255,2]
[331833007,1720776103483,286.62262299,0.00016255,2]
[331833008,1720776109071,240.20078219,0.00016255,2]
[331833009,1720776121950,403.003832,0.00016255,2]
[331833011,1720776139056,240.20078219,0.00016255,2]
[331833021,1720776390013,955.33303742,0.00016255,2]
[331833022,1720776391976,292.8332064,0.00016255,2]
[331833028,1720776505474,10006.41153273,0.000125,2]
[331833030,1720776515592,-1014.75005795,0.00017499,2]
[331833031,1720776515636,-1014.75005795,0.00017499,2]
[331833032,1720776515704,-333.49352403,0.00017499,2]
[331833034,1720776517731,4845.1403625,0.000139,2]
[331833035,1720776526622,6777.051862,0.00015,2]
[331833036,1720776528470,29299.48713568,0.00014,2]
[331833037,1720776529009,25637.27684746,0.0001,2]
[331833038,1720776540454,-1062.00993074,0.00017499,2]
[331833039,1720776540520,-596.85550357,0.00017499,2]
[331833041,1720776546185,-293.58203646,0.00017499,2]
[331833042,1720776565324,-1095.18723943,0.00017499,2]